fUST/lending_fUST_20250821
["ID","MTS","AMOUNT","RATE_DAILY","PERIOD"]
[380366060,1755705999136,-179.34252224,0.00019602,2]
[380366061,1755706019923,150.0,0.000189,2]
[380366062,1755706024249,372.20300182,0.000189,2]
[380366063,1755706049138,-277.167797,0.0001969,2]
[380366064,1755706049158,-1483.8994431,0.000197,2]
[380366065,1755706049177,-188.41253449,0.000198,2]
[380366066,1755706049196,-251.70148214,0.000199,2]
[380366067,1755706049219,-733.16307488,0.000199,2]
[380366068,1755706049240,-1200.0,0.00020624,2]
[380366069,1755706049259,-223.45435985,0.00020625,4]
[380366070,1755706049279,-1200.0,0.0002072,2]
[380366071,1755706049302,-300.0,0.0002072,2]
[380366072,1755706049329,-300.0,0.00020721,2]
[380366073,1755706049349,-300.0,0.00020721,2]
[380366074,1755706049370,-300.0,0.00020721,2]
[380366075,1755706049389,-300.0,0.00020721,2]
[380366076,1755706049409,-151.0,0.00020723,2]
[380366077,1755706049429,-500.0,0.00020723,2]
[380366078,1755706049450,-500.0,0.00020723,2]
[380366079,1755706049470,-500.0,0.00020723,2]
[380366080,1755706049489,-633.6111822,0.00020723,2]
[380366081,1755706049510,-1449.38,0.00020725,3]
[380366082,1755706049532,-724.69,0.00020725,3]
[380366083,1755706049558,-362.35,0.00020725,3]
[380366084,1755706049580,-181.17,0.00020725,3]
[380366085,1755706049722,-543.55,0.00020725,3]
[380366086,1755706049743,-119537.82051472,0.00020735,2]
[380366087,1755706049764,-161.94723832,0.00020773,2]
[380366088,1755706049784,-505.61033,0.00020773,2]
[380366089,1755706049804,-500.0,0.00020773,2]
[380366090,1755706049824,-173.70079383,0.00020773,2]
[380366091,1755706049843,-212.35465773,0.00020773,2]
[380366092,1755706049863,-500.0,0.00020773,2]
[380366093,1755706049884,-380.52724378,0.00020773,2]
[380366094,1755706049905,-500.0,0.00020773,2]
[380366095,1755706049925,-500.0,0.00020773,2]
[380366096,1755706049944,-507.71684695,0.00020773,2]
[380366097,1755706049966,-500.0,0.00020773,2]
[380366098,1755706049985,-500.0,0.00020773,2]
[380366099,1755706050011,-213.17439398,0.00020773,2]
[380366100,1755706050031,-500.0,0.00020773,2]
[380366101,1755706050051,-500.0,0.00020773,2]
[380366102,1755706050072,-158.72236461,0.00020773,2]
[380366103,1755706050092,-258.85517389,0.00020773,2]
[380366104,1755706050113,-500.0,0.00020773,2]
[380366105,1755706050134,-500.0,0.00020773,2]
[380366106,1755706050153,-500.0,0.00020773,2]
[380366107,1755706050172,-500.0,0.00020773,2]
[380366108,1755706050191,-443.3521458,0.00020773,2]
[380366109,1755706050209,-500.0,0.00020773,2]
[380366110,1755706050229,-489.41512049,0.00020773,2]
[380366111,1755706050248,-500.0,0.00020773,2]
[380366112,1755706050270,-500.0,0.00020773,2]
[380366113,1755706050288,-167.76922878,0.00020773,2]
[380366114,1755706050308,-490.0,0.00020773,2]
[380366115,1755706050327,-500.0,0.00020773,2]
[380366116,1755706050347,-227.27426636,0.00020773,2]
[380366117,1755706050366,-500.0,0.00020773,2]
[380366118,1755706050387,-500.0,0.00020773,2]
[380366119,1755706050406,-500.0,0.00020773,2]
[380366120,1755706050429,-426.6840499,0.00020773,2]
[380366121,1755706050449,-500.0,0.00020773,2]
[380366122,1755706050468,-474.74130098,0.00020773,2]
[380366123,1755706050487,-500.0,0.00020773,2]
[380366124,1755706050510,-500.0,0.00020773,2]
[380366125,1755706050530,-500.06002785,0.00020773,2]
[380366126,1755706050551,-500.0,0.00020773,2]
[380366127,1755706050571,-500.0,0.00020773,2]
[380366128,1755706050591,-500.0,0.00020773,2]
[380366129,1755706050611,-254.79186832,0.00020773,2]
[380366130,1755706050632,-500.0,0.00020773,2]
[380366131,1755706050651,-500.0,0.00020773,2]
[380366132,1755706050670,-500.0,0.00020773,2]
[380366133,1755706050690,-500.59189067,0.00020773,2]
[380366134,1755706050710,-500.0,0.00020773,2]
[380366135,1755706050729,-525.92403447,0.00020773,2]
[380366136,1755706050750,-500.0,0.00020773,2]
[380366137,1755706050771,-500.0,0.00020773,2]
[380366138,1755706050790,-500.0,0.00020773,2]
[380366139,1755706050810,-151.0,0.00020773,2]
[380366140,1755706050830,-500.0,0.00020773,2]
[380366141,1755706050849,-151.0,0.00020773,2]
[380366142,1755706050869,-151.0,0.00020773,2]
[380366143,1755706050888,-151.0,0.00020773,2]
[380366144,1755706050907,-151.0,0.00020773,2]
[380366145,1755706050926,-151.0,0.00020773,2]
[380366146,1755706050945,-151.2023969,0.00020773,2]
[380366147,1755706050965,-500.0,0.00020773,2]
[380366148,1755706050985,-500.0,0.00020773,2]
[380366149,1755706051006,-500.0,0.00020773,2]
[380366150,1755706051027,-1061.82952655,0.00020792,2]
[380366151,1755706051046,-160.0,0.00020828,2]
[380366152,1755706051066,-500.0,0.00021047,2]
[380366153,1755706051086,-500.0,0.00021047,2]
[380366154,1755706051105,-151.0,0.00021047,2]
[380366155,1755706051126,-500.0,0.00021047,2]
[380366156,1755706051146,-151.0,0.00021047,2]
[380366157,1755706051166,-151.0,0.00021047,2]
[380366158,1755706051187,-151.0,0.00021047,2]
[380366159,1755706051207,-151.0,0.00021047,2]
[380366160,1755706051227,-500.0,0.00021047,2]
[380366161,1755706051248,-500.0,0.00021047,2]
[380366162,1755706051270,-500.0,0.00021047,2]
[380366163,1755706051290,-500.0,0.00021321,2]
[380366164,1755706051310,-500.0,0.00021321,2]
[380366165,1755706051330,-500.0,0.00021321,2]
[380366166,1755706051350,-500.68961196,0.00021321,2]
[380366167,1755706051370,-500.0,0.00021321,2]
[380366168,1755706051391,-504.89955754,0.00021321,2]
[380366169,1755706051411,-500.0,0.00021321,2]
[380366170,1755706051431,-500.0,0.00021321,2]
[380366171,1755706051452,-500.0,0.00021321,2]
[380366172,1755706051472,-500.0,0.00021321,2]
[380366173,1755706051492,-500.0,0.00021321,2]
[380366174,1755706051514,-152.24880878,0.00021321,2]
[380366175,1755706051536,-210.71251693,0.00021321,2]
[380366176,1755706051556,-604.0,0.00021321,2]
[380366177,1755706051577,-151.0,0.00021321,2]
[380366178,1755706051597,-151.0,0.00021321,2]
[380366179,1755706051619,-151.0,0.00021321,2]
[380366180,1755706051640,-500.0,0.00021321,2]
[380366181,1755706051661,-302.0,0.00021321,2]
[380366182,1755706051682,-151.0,0.00021321,2]
[380366183,1755706051702,-158.7577131,0.00021321,2]
[380366184,1755706051722,-151.0,0.00021321,2]
[380366185,1755706051741,-151.0,0.00021321,2]
[380366186,1755706051762,-151.0,0.00021321,2]
[380366187,1755706051783,-488.0,0.00021321,2]
[380366188,1755706051802,-203.61461519,0.00021321,2]
[380366189,1755706051821,-151.0,0.00021321,2]
[380366190,1755706051841,-151.0,0.00021321,2]
[380366191,1755706051860,-151.26558543,0.00021321,2]
[380366192,1755706051879,-278.30464897,0.00021321,2]
[380366193,1755706051897,-151.31239949,0.00021321,2]
[380366194,1755706051916,-202.08835659,0.00021321,2]
[380366195,1755706051935,-500.0,0.00021321,2]
[380366196,1755706051954,-151.0,0.00021321,2]
[380366197,1755706051974,-500.0,0.00021321,2]
[380366198,1755706051992,-151.0,0.00021321,2]
[380366199,1755706052013,-151.96446113,0.00021321,2]
[380366200,1755706052032,-243.10542472,0.00021321,2]
[380366201,1755706052051,-165.5239725,0.0002156,2]
[380366202,1755706052076,-151.0,0.00021595,2]
[380366203,1755706052194,-500.0,0.00021595,2]
[380366204,1755706052215,-151.0,0.00021595,2]
[380366205,1755706052236,-151.0,0.00021595,2]
[380366206,1755706052260,-151.0,0.00021595,2]
[380366207,1755706052282,-488.0,0.00021595,2]
[380366208,1755706052303,-151.000001,0.00021595,2]
[380366209,1755706052323,-151.0,0.00021595,2]
[380366210,1755706052343,-500.0,0.00021595,2]
[380366211,1755706052362,-151.0,0.00021595,2]
[380366212,1755706052382,-500.0,0.00021595,2]
[380366213,1755706052401,-186.85147384,0.00021595,2]
[380366214,1755706052422,-239.84615473,0.00021869,2]
[380366215,1755706052444,-198.0,0.00021869,2]
[380366216,1755706052463,-165.79676134,0.00021869,2]
[380366217,1755706052482,-151.0,0.00021869,2]
[380366218,1755706052502,-151.0,0.00021869,2]
[380366219,1755706052525,-488.0,0.00021869,2]
[380366220,1755706052547,-151.89224758,0.00021869,2]
[380366221,1755706052567,-239.92302009,0.00021869,2]
[380366222,1755706052587,-151.0,0.00021869,2]
[380366223,1755706052608,-500.0,0.00021869,2]
[380366224,1755706052630,-2898.76,0.00022095,3]
[380366225,1755706052650,-1449.38,0.00022095,3]
[380366226,1755706052671,-724.7,0.00022095,3]
[380366227,1755706052691,-362.34,0.00022095,3]
[380366228,1755706052713,-266.58841261,0.00022143,2]
[380366229,1755706052734,-488.0,0.00022143,2]
[380366230,1755706052756,-151.0,0.00022143,2]
[380366231,1755706052775,-373.32682312,0.00022143,2]
[380366232,1755706052794,-578.20443966,0.00022273,2]
[380366233,1755706052814,-232.24568399,0.00022287,2]
[380366234,1755706052833,-160.0,0.00022287,2]
[380366235,1755706052853,-375.94359665,0.00022287,2]
[380366236,1755706052872,-215.82729805,0.00022287,2]
[380366237,1755706052893,-4243.2297292,0.00022288,2]
[380366238,1755706052914,-488.0,0.00022417,2]
[380366239,1755706052934,-151.0,0.00022417,2]
[380366240,1755706052954,-420.0,0.00022545,2]
[380366241,1755706052973,-329.54928962,0.00022548,2]
[380366242,1755706052994,-456.0,0.0002255,2]
[380366243,1755706053018,-151.0,0.0002259,2]
[380366244,1755706053039,-488.0,0.00022691,2]
[380366245,1755706053059,-245.0,0.00022691,2]
[380366246,1755706053083,-733.16307462,0.00022706,2]
[380366247,1755706053104,-479.99,0.0002278,3]
[380366248,1755706053124,-844.06,0.00022788,2]
[380366249,1755706053146,-175.75,0.00022788,2]
[380366250,1755706053167,-175.75,0.00022788,2]
[380366251,1755706053188,-175.75,0.00022788,2]
[380366252,1755706053210,-175.75,0.00022788,2]
[380366253,1755706053231,-5255.97272621,0.00022789,2]
[380366254,1755706053253,-3965.35268859,0.0002279,2]
[380366255,1755706053275,-500.0,0.00022873,2]
[380366256,1755706053295,-500.0,0.00022873,2]
[380366257,1755706053315,-500.90979466,0.00022873,2]
[380366258,1755706053335,-500.0,0.00022873,2]
[380366259,1755706053355,-500.0,0.00022873,2]
[380366260,1755706053375,-500.0,0.00022873,2]
[380366261,1755706053396,-536.56572488,0.00022873,2]
[380366262,1755706053417,-464.79902668,0.00022873,2]
[380366263,1755706053437,-160.31438668,0.00022873,2]
[380366264,1755706053456,-500.0,0.00022873,2]
[380366265,1755706053476,-500.0,0.00022873,2]
[380366266,1755706053495,-500.0,0.00022873,2]
[380366267,1755706053516,-320.74606242,0.00022873,2]
[380366268,1755706053542,-500.0,0.00022873,2]
[380366269,1755706053562,-500.0,0.00022873,2]
[380366270,1755706053587,-500.0,0.00022873,2]
[380366271,1755706053609,-500.0,0.00022873,2]
[380366272,1755706053631,-500.0,0.00022873,2]
[380366273,1755706053652,-501.84672423,0.00022873,2]
[380366274,1755706053673,-249.3,0.00022873,2]
[380366275,1755706053693,-500.0,0.00022873,2]
[380366276,1755706053715,-500.0,0.00022873,2]
[380366277,1755706053735,-414.34126824,0.00022873,2]
[380366278,1755706053755,-500.0,0.00022873,2]
[380366279,1755706053775,-501.31855364,0.00022873,2]
[380366280,1755706053796,-555.18793954,0.00022873,2]
[380366281,1755706053816,-633.9553656,0.00022873,2]
[380366282,1755706053837,-462.10436354,0.00022873,2]
[380366283,1755706053860,-500.0,0.00022873,2]
[380366284,1755706053880,-500.0,0.00022873,2]
[380366285,1755706053900,-500.0,0.00022873,2]
[380366286,1755706053922,-500.0,0.00022873,2]
[380366287,1755706053942,-500.0,0.00022873,2]
[380366288,1755706053962,-500.0,0.00022873,2]
[380366289,1755706053982,-502.16544725,0.00022873,2]
[380366290,1755706054004,-501.07752612,0.00022873,2]
[380366291,1755706054027,-500.80348526,0.00022873,2]
[380366292,1755706054048,-500.0,0.00022873,2]
[380366293,1755706054068,-500.0,0.00022873,2]
[380366294,1755706054088,-284.70517059,0.00022873,2]
[380366295,1755706054109,-501.04144634,0.00022873,2]
[380366296,1755706054129,-500.0,0.00022873,2]
[380366297,1755706054149,-500.0,0.00022873,2]
[380366298,1755706054169,-432.05615251,0.00022873,2]
[380366299,1755706054189,-309.70042856,0.00022873,2]
[380366300,1755706054208,-500.0,0.00022873,2]
[380366301,1755706054228,-501.85940276,0.00022873,2]
[380366302,1755706054248,-500.0,0.00022873,2]
[380366303,1755706054272,-500.0,0.00022873,2]
[380366304,1755706054293,-160.0,0.00022885,2]
[380366305,1755706054314,-844.05985274,0.00022885,2]
[380366306,1755706054334,-500.0,0.00022888,2]
[380366307,1755706054355,-484.02848892,0.00022888,2]
[380366308,1755706054376,-500.0,0.00022888,2]
[380366309,1755706054400,-500.0,0.00022888,2]
[380366310,1755706054423,-500.0,0.00022888,2]
[380366311,1755706054444,-500.0,0.00022888,2]
[380366312,1755706054465,-317.49925833,0.00022888,2]
[380366313,1755706054490,-613.36978634,0.00022888,2]
[380366314,1755706054533,-430.15342263,0.00022888,2]
[380366315,1755706054557,-500.0,0.00022888,2]
[380366316,1755706054580,-500.0,0.00022888,2]
[380366317,1755706054703,-500.0,0.00022888,2]
[380366318,1755706054728,-500.0,0.00022888,2]
[380366319,1755706054751,-500.0,0.00022888,2]
[380366320,1755706054774,-500.0,0.00022888,2]
[380366321,1755706054795,-500.0,0.00022888,2]
[380366322,1755706054818,-500.0,0.00022888,2]
[380366323,1755706054840,-344.49279906,0.00022888,2]
[380366324,1755706054864,-500.0,0.00022888,2]
[380366325,1755706054884,-500.0,0.00022888,2]
[380366326,1755706054904,-500.0,0.00022888,2]
[380366327,1755706054927,-500.0,0.00022888,2]
[380366328,1755706054950,-500.0,0.00022888,2]
[380366329,1755706054970,-500.0,0.00022888,2]
[380366330,1755706054991,-500.0,0.00022888,2]
[380366331,1755706055014,-500.0,0.00022888,2]
[380366332,1755706055038,-500.0,0.00022888,2]
[380366333,1755706055059,-500.0,0.00022888,2]
[380366334,1755706055081,-500.0,0.00022888,2]
[380366335,1755706055102,-500.0,0.00022888,2]
[380366336,1755706055123,-500.0,0.00022888,2]
[380366337,1755706055144,-500.0,0.00022888,2]
[380366338,1755706055166,-500.0,0.00022888,2]
[380366339,1755706055188,-500.0,0.00022888,2]
[380366340,1755706055212,-500.0,0.00022888,2]
[380366341,1755706055233,-500.0,0.00022888,2]
[380366342,1755706055255,-532.20068754,0.00022888,2]
[380366343,1755706055278,-338.3877925,0.00022888,2]
[380366344,1755706055302,-500.0,0.00022888,2]
[380366345,1755706055326,-401.69609411,0.00022888,2]
[380366346,1755706055349,-500.0,0.00022888,2]
[380366347,1755706055370,-500.0,0.00022888,2]
[380366348,1755706055391,-201.43284941,0.00022888,2]
[380366349,1755706055412,-500.0,0.00022888,2]
[380366350,1755706055436,-500.0,0.00022888,2]
[380366351,1755706055459,-500.0,0.00022888,2]
[380366352,1755706055485,-500.0,0.00022888,2]
[380366353,1755706055511,-500.0,0.00022888,2]
[380366354,1755706055536,-500.0,0.00022888,2]
[380366355,1755706055569,-500.0,0.00022888,2]
[380366356,1755706055596,-500.0,0.00022888,2]
[380366357,1755706055621,-500.0,0.00022888,2]
[380366358,1755706055646,-500.0,0.00022888,2]
[380366359,1755706055670,-500.0,0.00022888,2]
[380366360,1755706055692,-500.0,0.00022888,2]
[380366361,1755706055716,-500.0,0.00022888,2]
[380366362,1755706055739,-500.0,0.00022888,2]
[380366363,1755706055762,-500.0,0.00022888,2]
[380366364,1755706055786,-500.0,0.00022888,2]
[380366365,1755706055807,-500.0,0.00022888,2]
[380366366,1755706055827,-500.0,0.00022888,2]
[380366367,1755706055849,-500.0,0.00022888,2]
[380366368,1755706055871,-500.0,0.00022888,2]
[380366369,1755706055893,-500.0,0.00022888,2]
[380366370,1755706055916,-500.0,0.00022888,2]
[380366371,1755706055938,-500.0,0.00022888,2]
[380366372,1755706055960,-500.0,0.00022888,2]
[380366373,1755706055984,-500.0,0.00022888,2]
[380366374,1755706056006,-500.0,0.00022888,2]
[380366375,1755706056031,-500.0,0.00022888,2]
[380366376,1755706056054,-500.0,0.00022888,2]
[380366377,1755706056076,-500.0,0.00022888,2]
[380366378,1755706056099,-500.0,0.00022888,2]
[380366379,1755706056124,-500.0,0.00022888,2]
[380366380,1755706056147,-500.0,0.00022888,2]
[380366381,1755706056170,-500.0,0.00022888,2]
[380366382,1755706056194,-500.0,0.00022888,2]
[380366383,1755706056216,-500.0,0.00022888,2]
[380366384,1755706056239,-400.0,0.00022888,2]
[380366385,1755706056264,-500.0,0.00022888,2]
[380366386,1755706056287,-500.0,0.00022888,2]
[380366387,1755706056311,-500.0,0.00022888,2]
[380366388,1755706056336,-500.0,0.00022888,2]
[380366389,1755706056357,-162.425812,0.0002289,7]
[380366390,1755706056378,-192.3318,0.0002289,7]
[380366391,1755706056398,-151.985388,0.0002289,7]
[380366392,1755706056419,-151.0,0.0002289,7]
[380366393,1755706056441,-151.0,0.0002289,7]
[380366394,1755706056462,-154.606989,0.0002289,7]
[380366395,1755706056483,-151.699238,0.0002289,7]
[380366396,1755706056504,-151.0,0.0002289,7]
[380366397,1755706056526,-151.0,0.0002289,7]
[380366398,1755706056550,-151.0,0.0002289,7]
[380366399,1755706056572,-151.0,0.0002289,7]
[380366400,1755706056594,-151.0,0.0002289,7]
[380366401,1755706056616,-153.429522,0.0002289,7]
[380366402,1755706056638,-151.0,0.0002289,7]
[380366403,1755706056659,-151.0,0.0002289,7]
[380366404,1755706056680,-151.0,0.0002289,7]
[380366405,1755706056701,-151.0,0.0002289,7]
[380366406,1755706056722,-151.0,0.0002289,7]
[380366407,1755706056743,-174.166731,0.0002289,7]
[380366408,1755706056764,-151.129639,0.0002289,7]
[380366409,1755706056786,-200.627726,0.0002289,7]
[380366410,1755706056806,-151.496177,0.0002289,7]
[380366411,1755706056828,-151.0,0.0002289,7]
[380366412,1755706056850,-151.0,0.0002289,7]
[380366413,1755706056871,-366.55359,0.0002289,7]
[380366414,1755706056891,-366.55359,0.0002289,7]
[380366415,1755706056912,-366.55359,0.0002289,7]
[380366416,1755706056934,-366.55359,0.0002289,7]
[380366417,1755706056954,-153.432833,0.0002289,7]
[380366418,1755706056974,-151.0,0.0002289,7]
[380366419,1755706056995,-151.0,0.0002289,7]
[380366420,1755706057016,-151.0,0.0002289,7]
[380366421,1755706057038,-151.0,0.0002289,7]
[380366422,1755706057059,-151.0,0.0002289,7]
[380366423,1755706057081,-151.0,0.0002289,7]
[380366424,1755706057102,-151.0,0.0002289,7]
[380366425,1755706057124,-151.0,0.0002289,7]
[380366426,1755706057241,-151.0,0.0002289,7]
[380366427,1755706057264,-151.0,0.0002289,7]
[380366428,1755706057286,-151.0,0.0002289,7]
[380366429,1755706057312,-151.0,0.0002289,7]
[380366430,1755706057333,-151.0,0.0002289,7]
[380366431,1755706057354,-151.0,0.0002289,7]
[380366432,1755706057375,-262.97688,0.0002289,7]
[380366433,1755706057398,-262.97688,0.0002289,7]
[380366434,1755706057419,-151.0,0.0002289,7]
[380366435,1755706057441,-262.97688,0.0002289,7]
[380366436,1755706057463,-262.97688,0.0002289,7]
[380366437,1755706057484,-151.0,0.0002289,7]
[380366438,1755706057505,-151.0,0.0002289,7]
[380366439,1755706057527,-151.0,0.0002289,7]
[380366440,1755706057552,-151.0,0.0002289,7]
[380366441,1755706057576,-151.0,0.0002289,7]
[380366442,1755706057598,-238.749711,0.0002289,7]
[380366443,1755706057620,-151.0,0.0002289,7]
[380366444,1755706057642,-151.0,0.0002289,7]
[380366445,1755706057665,-151.0,0.0002289,7]
[380366446,1755706057687,-151.0,0.0002289,7]
[380366447,1755706057708,-151.0,0.0002289,7]
[380366448,1755706057730,-151.0,0.0002289,7]
[380366449,1755706057751,-151.0,0.0002289,7]
[380366450,1755706057776,-151.0,0.0002289,7]
[380366451,1755706057797,-151.0,0.0002289,7]
[380366452,1755706057819,-151.0,0.0002289,7]
[380366453,1755706057842,-151.0,0.0002289,7]
[380366454,1755706057866,-151.0,0.0002289,7]
[380366455,1755706057891,-23890.71216839,0.0002289,2]
[380366456,1755706072764,164.611102,0.00013699,2]
[380366519,1755706238283,-684.28553637,0.000199,2]
[380366521,1755706238293,-755.01375906,0.0002036,2]
[380366523,1755706238303,-17.55068285,0.00020773,2]
[380366525,1755706238314,-207.06254627,0.00020773,2]
[380366527,1755706238324,-360.27169985,0.00020773,2]
[380366529,1755706238333,-684.28553631,0.00020835,2]
[380366531,1755706238343,-300.0,0.00020989,2]
[380366533,1755706238353,-684.28553631,0.00021771,2]
[380366535,1755706238363,-844.05985274,0.00021978,2]
[380366537,1755706238373,-232.24568399,0.00021978,2]
[380366539,1755706238382,-160.0,0.00021978,2]
[380366541,1755706238391,-375.94359665,0.00021978,2]
[380366543,1755706238401,-7485.84554788,0.0002199,2]
[380366545,1755706238412,-3300.3,0.0002199,2]
[380366548,1755706238427,-9995.01400751,0.0002199,2]
[380366550,1755706238438,-51801.02908176,0.0002199,2]
[380366552,1755706238449,-19886.36364305,0.0002199,2]
[380366554,1755706238458,-1082.5982013,0.000227,2]
[380366556,1755706238467,-684.28553631,0.00022706,2]
[380366558,1755706238477,-3503.98181748,0.000228,2]
[380366560,1755706238486,-420.0,0.00022832,2]
[380366562,1755706238495,-160.0,0.00022872,2]
[380366564,1755706238504,-500.0,0.00022873,2]
[380366567,1755706238513,-151.0,0.00022876,2]
[380366570,1755706238522,-151.0,0.00022888,2]
[380366572,1755706238532,-500.0,0.00022889,2]
[380366574,1755706238541,-500.0,0.00022889,2]
[380366576,1755706238550,-500.0,0.00022889,2]
[380366578,1755706238560,-500.0,0.00022889,2]
[380366579,1755706238570,-500.0,0.00022889,2]
[380366581,1755706238580,-530.16960941,0.00022889,2]
[380366583,1755706238590,-336.9111875,0.00022889,2]
[380366585,1755706238601,-522.38142771,0.00022889,2]
[380366587,1755706238616,-204.26531028,0.00022889,2]
[380366589,1755706238625,-427.16586656,0.00022889,2]
[380366591,1755706238635,-151.0,0.0002289,7]
[380366593,1755706238646,-151.0,0.0002289,7]
[380366595,1755706238655,-151.0,0.0002289,7]
[380366597,1755706238665,-152.315725,0.0002289,7]
[380366599,1755706238675,-375.94359665,0.0002289,7]
[380366601,1755706238687,-293.242872,0.0002289,7]
[380366603,1755706238697,-151.0,0.0002289,7]
[380366605,1755706238706,-293.242872,0.0002289,7]
[380366607,1755706238715,-152.62283,0.0002289,7]
[380366609,1755706238725,-293.242872,0.0002289,7]
[380366611,1755706238735,-151.0,0.0002289,7]
[380366613,1755706238744,-293.242872,0.0002289,7]
[380366615,1755706238753,-151.0,0.0002289,7]
[380366617,1755706238762,-166.036807,0.0002289,7]
[380366619,1755706238772,-1013.23298153,0.0002289,2]
[380366621,1755706238781,-346109.28783161,0.0002289,2]
[380366623,1755706238790,-1147.83,0.000229,7]
[380366625,1755706238799,-10199.69,0.000229,7]
[380366627,1755706238808,-5417.28,0.000229,7]
[380366629,1755706238817,-12687.94051737,0.000229,7]
[380366631,1755706238827,-215.82729805,0.000229,7]
[380366633,1755706238837,-500.0,0.00022973,2]
[380366635,1755706238846,-500.0,0.00022973,2]
[380366637,1755706238855,-500.0,0.00022973,2]
[380366639,1755706238864,-50000.0,0.00022973,2]
[380366641,1755706238874,-150.0,0.00022989,2]
[380366642,1755706238883,-151.0,0.0002299,7]
[380366644,1755706238893,-151.0,0.0002299,7]
[380366646,1755706238903,-151.0,0.0002299,7]
[380366648,1755706238913,-151.0,0.0002299,7]
[380366650,1755706238923,-151.0,0.0002299,7]
[380366652,1755706238932,-151.0,0.0002299,7]
[380366654,1755706238941,-151.0,0.0002299,7]
[380366656,1755706238950,-151.0,0.0002299,7]
[380366658,1755706238960,-151.0,0.0002299,7]
[380366660,1755706238970,-151.0,0.0002299,7]
[380366662,1755706238980,-151.0,0.0002299,7]
[380366664,1755706238989,-151.0,0.0002299,7]
[380366666,1755706238998,-151.0,0.0002299,7]
[380366668,1755706239008,-151.0,0.0002299,7]
[380366670,1755706239017,-151.0,0.0002299,7]
[380366672,1755706239026,-151.0,0.0002299,7]
[380366674,1755706239035,-151.0,0.0002299,7]
[380366676,1755706239044,-151.0,0.0002299,7]
[380366678,1755706239053,-151.0,0.0002299,7]
[380366680,1755706239063,-293.242872,0.0002299,7]
[380366682,1755706239072,-293.242872,0.0002299,7]
[380366684,1755706239081,-293.242872,0.0002299,7]
[380366686,1755706239090,-151.0,0.0002299,7]
[380366688,1755706239099,-293.242872,0.0002299,7]
[380366689,1755706239110,-151.0,0.0002299,7]
[380366691,1755706239124,-160.0,0.00023,2]
[380366693,1755706239134,-151.0,0.00023162,2]
[380366695,1755706239143,-334.79054578,0.00023182,2]
[380366697,1755706239158,-151.0,0.00023268,7]
[380366699,1755706239174,-154.843875,0.00023268,7]
[380366701,1755706239184,-1000.0,0.00023268,2]
[380366703,1755706239194,-1000.0,0.00023268,2]
[380366705,1755706239212,-1000.0,0.00023268,2]
[380366707,1755706239226,-1000.0,0.00023268,2]
[380366709,1755706239235,-1000.0,0.00023268,2]
[380366711,1755706239244,-151.0,0.00023268,7]
[380366713,1755706239253,-151.0,0.00023268,7]
[380366715,1755706239263,-500.0,0.00023268,7]
[380366717,1755706239272,-3965.35268858,0.00023296,2]
[380366719,1755706239281,-1082.59820127,0.00023333,2]
[380366721,1755706239291,-206.0,0.00023395,2]
[380366723,1755706239299,-160.0,0.00023417,2]